Workbook

Sheet ADA CONSTRUCTION JAN 2023 CAA
A1: DEPARTMENT OF TRANSPORTATION - CALTRANS
A2: DBE Commitment at Award (CAA) on Federally Funded Major Construction Contracts - October 1, 2022 - January 31, 2023
A4: Total Award Amount Year-to-Date (YTD) | C4: Total DBE Commitment Amount YTD | G4: Total Prime Contracts Awarded YTD
A5: 721964213.9 | C5: =SUM(C7:C18) -> 183071079.7 | G5: =SUM(C206:C231,J206:J231,F206:F231) -> 80
A6: Groups | C6: Commitment Dollars YTD | D6: Firms YTD | E6: Contracts YTD | G6: % of Contracts | I6: % of DBE $ | J6: % of Total $
A7: Hispanic American Male | C7: =SUMIF(D30:D95,"m", C30:C95) -> 50871601.97 | D7: =COUNTIF(D30:D95,"M") -> 48 | E7: =SUMIF(D30:D95,"M",E30:E95) -> 119 | G7: =E7/E20 -> 0.2773892774 | I7: =C7/C5 -> 0.277878964 | J7: =C7/A5 -> 0.07046277501
A8: Hispanic American Female | C8: =SUMIF(D30:D95,"F", C30:C95) -> 23448195.52 | D8: =COUNTIF(D30:D95,"F") -> 15 | E8: =SUMIF(D30:D95,"F",E30:E95) -> 60 | G8: =E8/E20 -> 0.1398601399 | I8: =C8/C5 -> 0.128082467 | J8: =C8/A5 -> 0.03247833489
A9: African American Male | C9: =SUMIF(D108:D119,"m", C108:C119) -> 4029510.24 | D9: =COUNTIF(D108:D118,"M") -> 6 | E9: =SUMIF(D108:D118,"M",E108:E118) -> 22 | G9: =E9/E20 -> 0.05128205128 | I9: =C9/C5 -> 0.02201063241 | J9: =C9/A5 -> 0.005581315753
A10: African American Female | C10: =SUMIF(D108:D119,"F", C108:C119) -> 887169.88 | D10: =COUNTIF(D108:D118,"F") -> 3 | E10: =SUMIF(D108:D118,"F",E108:E118) -> 8 | G10: =E10/E20 -> 0.01864801865 | I10: =C10/C5 -> 0.004846040573 | J10: =C10/A5 -> 0.001228828054
A11: Asian Pacific Male | C11: =SUMIF(D135:D148,"m", C135:C148) -> 5729859.5 | D11: =COUNTIF(D135:D148,"M") -> 6 | E11: =SUMIF(D135:D148,"M",E135:E148) -> 15 | G11: =E11/E20 -> 0.03496503497 | I11: =C11/C5 -> 0.03129855086 | J11: =C11/A5 -> 0.007936486864
A12: Asian Pacific Female | C12: =SUMIF(D135:D148,"F", C135:C148) -> 5584271.08 | D12: =COUNTIF(D135:D148,"F") -> 6 | E12: =SUMIF(D135:D148,"F",E135:E148) -> 20 | G12: =E12/E20 -> 0.04662004662 | I12: =C12/C5 -> 0.03050329461 | J12: =C12/A5 -> 0.007734830858
A13: Subcontinent Asian Male | C13: =SUMIF(D122:D132,"m", C122:C132) -> 10991960.06 | D13: =COUNTIF(D122:D132,"M") -> 9 | E13: =SUMIF(D122:D132,"M",E122:E132) -> 22 | G13: =E13/E20 -> 0.05128205128 | I13: =C13/C5 -> 0.06004203437 | J13: =C13/A5 -> 0.01522507605
A14: Subcontinent Asian Female | C14: =SUMIF(D122:D132,"F", C122:C132) -> 0 | D14: =COUNTIF(D122:D132,"F") -> 0 | E14: =SUMIF(D122:D132,"F",E122:E132) -> 0 | G14: =E14/E20 -> 0 | I14: =C14/C5 -> 0 | J14: =C14/A5 -> 0
A15: Native American Male | C15: =SUMIF(D98:D105,"m", C98:C105) -> 15556910.83 | D15: =COUNTIF(D98:D105,"M") -> 6 | E15: =SUMIF(D98:D105,"M",E98:E105) -> 18 | G15: =E15/E20 -> 0.04195804196 | I15: =C15/C5 -> 0.08497743529 | J15: =C15/A5 -> 0.02154803594
A16: Native American Female | C16: =SUMIF(D98:D105,"F", C98:C105) -> 1881339 | D16: =COUNTIF(D98:D105,"F") -> 1 | E16: =SUMIF(D98:D105,"F",E98:E105) -> 3 | G16: =E16/E20 -> 0.006993006993 | I16: =C16/C5 -> 0.01027654943 | J16: =C16/A5 -> 0.002605861847
A17: Non Minority Women | C17: =SUMIF(D155:D201,"F", C155:C201) -> 64090261.64 | D17: =COUNTIF(D155:D201,"F") -> 46 | E17: =SUMIF(D155:D201,"F",E155:E201) -> 142 | G17: =E17/E20 -> 0.331002331 | I17: =C17/C5 -> 0.3500840315 | J17: =C17/A5 -> 0.08877207541
A18: Other Men | C18: =SUMIF(D151:D152,"m", C151:C152) -> 0 | D18: =COUNTIF(D151:D152,"M") -> 0 | E18: =SUMIF(D151:D152,"M",E151:E152) -> 0 | G18: =E18/E20 -> 0 | I18: =C18/C5 -> 0 | J18: =C18/A5 -> 0
G19: =E19/E20 -> 0 | I19: =C19/C5 -> 0 | J19: =C19/A5 -> 0
A20: Total | C20: =SUM(C7:C18) -> 183071079.7 | D20: =SUM(D7:D19) -> 146 | E20: =SUM(E7:E19) -> 429
A21: Total Primes Contracts | C21: =SUM(C206:C231,J206:J231,F206:F231) -> 80
A23: Yellow = DBEs | C23: Green = Trucking | D23: =COUNTIF(B30:B201,43) -> 19 | E23: =SUM(SUMIF(B29:B95,"43",C29:C95),SUMIF(B97:B152,"43",C97:C152),SUMIF(B154:B201,"43",C154:C201)) -> 20806474.3 | G23: =E23/C5 -> 0.1136524367
A24: Red = Prime Contractor | C24: Blue = Supplier | D24: =COUNTIF(B30:B201,33) -> 22 | E24: =SUM(SUMIF(B30:B95,"33",C30:C95),SUMIF(B98:B152,"33",C98:C152),SUMIF(B155:B201,"33",C155:C201)) -> 32449175 | G24: =E24/C5 -> 0.1772490502
A25: Red Italic = DBE firm as Prime | C25: White = Other | D25: =COUNTIF(B30:B201,-4142) -> 105 | E25: =C5-(E23+E24) -> 129815430.4 | G25: =E25/C5 -> 0.7090985131
A26: BOLD = women
A27: * = Used both as Trucking & Supplier
A29: Hispanic American | B29: Column1 | C29: Dollars | D29: M/F | E29: Contract | F29: Contract # | G29: Prime | H29: Prime Name | I29: Districts
A30: 3P LANDSCAPING | B30: -4142 | C30: 2329355.78 | D30: M | E30: 4 | F30: =fetchcomment(E30) -> 04-0Q6804 06-0R2104 07-306614 12-0Q2704 | G30: 4 | H30: =fetchcomment(G30) -> A.M. CONCRETE, INC. CAL VALLEY CONSTRUCTION, INC. GRIFFITH COMPANY GORDON N. BALL, INC. | I30: 4, 6, 7, 12
A31: A & M CONSULTING ENGINEERS | B31: -4142 | C31: 66100 | D31: M | E31: 3 | F31: =fetchcomment(E31) -> 03-1J0104 04-0K4904 05-1G9804 | G31: 3 | H31: =fetchcomment(G31) -> CALIFORNIA HIGHWAY CONSTRUCTION GROUP, INC O.C. JONES AND SONS INC CALPORTLAND CONSTRUCTION | I31: 3,4,5
A32: ABSL CONSTRUCTION | B32: -4142 | C32: 2002050 | D32: M | E32: 13 | F32: =fetchcomment(E32) -> 04-0K2404 04-0Q30U4 04-3K4404 04-4J9404 05-0C7324 03-0J8704 04-0K4904 04-2Q2504 05-1G9804 05-1H6904 04-1J7804 05-1H8104 06-0R2104 | G32: 8 | H32: =fetchcomment(G32) -> BAY CITIES PAVING & GRADING, INC. DESILVA GATES CONSTRUCTION LLC GRANITE CONSTRUCTION COMPANY O.C. JONES & SONS, INC. A TEICHERT AND SON INC AMERICAN CIVIL CONSTRUCTION CALPORTLAND CONSTRUCTION CAL VALLEY CONSTRUCTION, INC. | I32: 3,4,5,6
A33: ALFARO COMMUNICATIONS CONSTRUCTION INC | B33: -4142 | C33: 1383364.1 | D33: M | E33: 1 | F33: =fetchcomment(E33) -> 12-0R1504 | G33: 1 | H33: =fetchcomment(G33) -> ALFARO COMMUNICATIONS CONSTRUCTION,INC | I33: 12
A34: AUSTIN ENTERPRISE | B34: -4142 | C34: 1503555.25 | D34: F | E34: 9 | F34: =fetchcomment(E34) -> 01-0G1404 04-0Q30U4 05-0C7324 05-1H9604 07-326204 04-2Q2504 05-1K1204 04-2K1704 06-0U8804 | G34: 8 | H34: =fetchcomment(G34) -> BAY CITIES PAVING & GRADING, INC. FEC FUTURE CONTRACTORS AND ENGINEERS, INC GRANITE CONSTRUCTION COMPANY STEELHEAD CONSTRUCTORS JV AMERICAN CIVIL CONSTRUCTORS GORDON N BALL GHILOTTI CONSTRUCTION COMPANY, INC. SECURITY PAVING COMPANY, INC. | I34: 1, 4, 5, 6, 7
A35: BAYSIDE ENGINEERING | B35: -4142 | C35: 23600 | D35: M | E35: 1 | F35: =fetchcomment(E35) -> 12-0Q2704 | G35: 1 | H35: =fetchcomment(G35) -> GRIFFITH COMPANY | I35: 12
A36: BEST TESTLAB INC | B36: -4142 | C36: 16500 | D36: F | E36: 1 | F36: =fetchcomment(E36) -> 03-1J0104 | G36: 1 | H36: =fetchcomment(G36) -> CALIFORNIA HIGHWAY CONSTRUCTION GROUP, INC. | I36: 3
A37: BLANCO CONSTRUCTION | B37: -4142 | C37: 1203520 | D37: M | E37: 1 | F37: =fetchcomment(E37) -> 07-322704 | G37: 1 | H37: =fetchcomment(G37) -> AUTOBAHN CONSTRUCTION INC. | I37: 7
A38: BRUCE ANDERSON | B38: -4142 | C38: 592026 | D38: M | E38: 2 | F38: =fetchcomment(E38) -> 07-307024 07-359704 | G38: 1 | H38: =fetchcomment(G38) -> CALPROMAX ENGINEERING INC. | I38: 7
A39: C&N REINFORCING, INC. | B39: -4142 | C39: 3907391.28 | D39: M | E39: 7 | F39: =fetchcomment(E39) -> 04-0Q30U4 01-0E7904 01-0H0214 01-366004 05-1H6904 | G39: 6 | H39: =fetchcomment(G39) -> BAY CITIES PAVING & GRADING, INC. MERCER FRASER GRANITE CONSTRUCTION COMPANY DESILVA GATES CONSTRUCTION GHILOTTI BROS., INC. GHILOTTI CONSTRUCTION COMPANY, INC. | I39: 1, 4, 5
A40: CENTRAL COAST TRAFFIC SAFETY INC | B40: -4142 | C40: 2245502.5 | D40: M | E40: 2 | F40: =fetchcomment(E40) -> 05-1H9604 05-1G9804 | G40: 2 | H40: =fetchcomment(G40) -> GRANITE CONSTRUCTION COMPANY CALPORTLAND CONSTRUCTION | I40: 5
A41: CHAVEZ TRUCKING | B41: 33 | C41: 1931921 | D41: F | E41: 5 | F41: =fetchcomment(E41) -> 04-0K2404 04-0K4904 04-1J7804 04-4J4904 05-1H6904 | G41: 3 | H41: =fetchcomment(G41) -> DESILVA GATES CONSTRUCTION LLC GHILOTTI BROS., INC. O.C. JONES & SONS INC | I41: 4,5
A42: D.B. ELECTRIC INC | B42: -4142 | C42: 1433261 | D42: M | E42: 1 | F42: =fetchcomment(E42) -> 07-333004 | G42: 1 | H42: =fetchcomment(G42) -> POWELL CONSTRUCTORS INC | I42: 7
A43: DE LA FUENTE CONSTRUCTION | B43: -4142 | C43: 1173730 | D43: M | E43: 1 | F43: =fetchcomment(E43) -> 11-422304 | G43: 1 | H43: =fetchcomment(G43) -> HAZARD CONSTRUCTION ENGR | I43: 11
A44: DELTA BAY CONSULTANTS LLC | B44: -4142 | C44: 4800 | D44: M | E44: 3 | F44: =fetchcomment(E44) -> 01-434804 12-0R1904 01-366004 | G44: 3 | H44: =fetchcomment(G44) -> FERREIRA CONSTRUCTION CO., INC. POWELL CONSTRUCTORS INC GRANITE CONSTRUCTION | I44: 1,12
A45: DESIGN BUILD ENGINEERING | B45: -4142 | C45: 469694 | D45: M | E45: 1 | F45: =fetchcomment(E45) -> 07-322004 | G45: 1 | H45: =fetchcomment(G45) -> POWELL CONSTRUCTORS INC | I45: 7
A46: DON MAHAFFEY DRILLING COMPANY | B46: -4142 | C46: 87000 | D46: F | E46: 2 | F46: =fetchcomment(E46) -> 05-0C7324 12-0R1904 | G46: 2 | H46: =fetchcomment(G46) -> GRANITE CONSTRUCTION COMPANY FERREIRA CONSTRUCTION CO., INC. | I46: 5, 12
A47: DRAGON MATERIAL TRANSPORT | B47: 33 | C47: 5893350 | D47: F | E47: 5 | F47: =fetchcomment(E47) -> 04-0Q30U4 05-0C7324 05-1J4604 06-0R2104 06-0U8804 | G47: 5 | H47: =fetchcomment(G47) -> BAY CITIES PAVING & GRADING, INC. CAL VALLEY CONSTRUCTION, INC. GRANITE CONSTRUCTION COMPANY GRANITE ROCK COMPANY SECURITY PAVING COMPANY, INC. | I47: 4, 5, 6
A48: DRS REBAR INC | B48: -4142 | C48: 302167.26 | D48: M | E48: 4 | F48: =fetchcomment(E48) -> 07-333004 07-353304 12-0Q2704 07-322004 | G48: 2 | H48: =fetchcomment(G48) -> GRIFFITH COMPANY POWELL CONSTRUCTORS INC | I48: 7, 12
A49: E & L GONZALEZ ENGINEERING | B49: -4142 | C49: 1787729.86 | D49: M | E49: 2 | F49: =fetchcomment(E49) -> 07-326204 07-326204 | G49: 1 | H49: =fetchcomment(G49) -> FEC FUTURE CONTRACTORS AND ENGINEERS, INC | I49: 7
A50: E. AMEZCUA TRUCKING INC | B50: 43 | C50: 550000 | D50: M | E50: 1 | F50: =fetchcomment(E50) -> 04-0K4904 | G50: 1 | H50: =fetchcomment(G50) -> O.C. JONES AND SONS INC | I50: 4
A51: EIGHTEEN TRUCKING | B51: 43 | C51: 320000 | D51: F | E51: 3 | F51: =fetchcomment(E51) -> 04-0Q6804 05-1K1204 05-1M4504 | G51: 1 | H51: =fetchcomment(G51) -> GORDON N BALL INC | I51: 4, 5
A52: ENDEMIC ENVIRONMENTAL SERVICES | B52: -4142 | C52: 102250 | D52: M | E52: 4 | F52: =fetchcomment(E52) -> 08-1H2004 01-0E0104 01-0H0214 01-0H1914 | G52: 2 | H52: =fetchcomment(G52) -> AMES CONSTRUCTION INC MERCER FRASER COMPANY | I52: 1,8
A53: FLASH TRAFFIC INC | B53: -4142 | C53: 58000 | D53: F | E53: 1 | F53: =fetchcomment(E53) -> 05-1K0704 | G53: 1 | H53: =fetchcomment(G53) -> GORDON N. BALL, INC. | I53: 5
A54: FRONTLINE TRAFFIC CONTROL | B54: -4142 | C54: 23380 | D54: M | E54: 1 | F54: =fetchcomment(E54) -> 12-0R2904 | G54: 1 | H54: =fetchcomment(G54) -> PETERSON-CHASE GENERAL ENGINEERING CONST | I54: 12
A55: FULL TRAFFIC MAINTENANCE, INC. | B55: -4142 | C55: 48712.5 | D55: M | E55: 1 | F55: =fetchcomment(E55) -> 12-0R1804 | G55: 1 | H55: =fetchcomment(G55) -> CALPROMAX ENGINEERING INC. | I55: 12
A56: HER-CON CONSTRUCTION SERVICES | B56: -4142 | C56: 337917.38 | D56: M | E56: 2 | F56: =fetchcomment(E56) -> 07-359504 12-0R5004 | G56: 2 | H56: =fetchcomment(G56) -> CROSSTOWN ELECTRICAL AND DATA, INC. INTERNATIONAL LINE BUILDERS, INC. | I56: 7, 12
A57: G & G ELECTRIC | B57: -4142 | C57: 41480 | D57: M | E57: 1 | F57: =fetchcomment(E57) -> 07-322004 | G57: 1 | H57: =fetchcomment(G57) -> POWELL CONSTRUCTORS INC | I57: 7
A58: G.O. RODRIGUEZ TRUCKING | B58: 43 | C58: 231840 | D58: M | E58: 1 | F58: =fetchcomment(E58) -> 07-336004 | G58: 1 | H58: =fetchcomment(G58) -> BEADOR CONSTRUCTION | I58: 7
A59: GEOSTRUCTURAL | B59: -4142 | C59: 455680 | D59: M | E59: 2 | F59: =fetchcomment(E59) -> 04-0Q30U4 05-1M4504 | G59: 2 | H59: =fetchcomment(G59) -> BAY CITIES PAVING & GRADING, INC. GORDON N. BALL, INC. | I59: 4,5
A60: GREENCOAST LANDSCAPES, INC. | B60: -4142 | C60: 25436 | D60: F | E60: 1 | F60: =fetchcomment(E60) -> 05-1C3604 | G60: 1 | H60: =fetchcomment(G60) -> M.C.M. CONSTRUCTION, INC. | I60: 5
A61: GOLDEN BAY FENCE PLUS IRON | B61: -4142 | C61: 10720 | D61: M | E61: 1 | F61: =fetchcomment(E61) -> 04-1J7804 | G61: 1 | H61: =fetchcomment(G61) -> O.C. JONES & SONS, INC. | I61: 4
A62: JEFFERSON STATE HIGHWAY INC | B62: -4142 | C62: 2613655.88 | D62: M | E62: 5 | F62: =fetchcomment(E62) -> 04-0K2404 04-2K8104 05-1K0704 01-0E0104 01-366004 | G62: 5 | H62: =fetchcomment(G62) -> DESILVA GATES CONSTRUCTION LLC GORDON N. BALL, INC. PACIFIC INFRASTRUCTURE CONSTRUCTION MERCER FRASER COMPANY GRANITE CONSTRUCTION | I62: 1,4,5
A63: L & B METAL PRODUCT FABRICATION | B63: 33 | C63: 142278.75 | D63: M | E63: 1 | F63: =fetchcomment(E63) -> 01-0G1404 | G63: 1 | H63: =fetchcomment(G63) -> STEELHEAD CONSTRUCTORS JV | I63: 1
A64: LA FIRMA, INC. | B64: -4142 | C64: 62850 | D64: M | E64: 3 | F64: =fetchcomment(E64) -> 12-0R2904 05-1H6904 05-1H8104 | G64: 2 | H64: =fetchcomment(G64) -> PETERSON-CHASE GENERAL ENGINEERING CONSTRUCITON DESILVA GATES CONSTRUCTION A. TEICHERT & SON INC DBA TEICHERT CONSTRUCTION | I64: 5,12
A65: LOGISTICAL ENTERPRISES | B65: 33 | C65: 1008454.49 | D65: F | E65: 5 | F65: =fetchcomment(E65) -> 03-1J0104 04-0K0704 07-307024 07-359704 12-0R1804 | G65: 3 | H65: =fetchcomment(G65) -> CALIFORNIA HIGHWAY CONSTRUCTION GROUP, INC. CALPROMAX ENGINEERING INC. ST. FRANCIS ELECTRIC, LLC | I65: 3, 4, 7, 12
A66: LONE STAR LANDSCAPE | B66: -4142 | C66: 1389216 | D66: M | E66: 5 | F66: =fetchcomment(E66) -> 03-1J0104 04-3K4204 05-0C7324 04-2G7404 05-1K1204 | G66: 5 | H66: =fetchcomment(G66) -> CALIFORNIA HIGHWAY CONSTRUCTION GROUP, INC. GRANITE CONSTRUCTION COMPANY GRANITE ROCK COMPANY GHILOTTI BROS INC GORDON N BALL | I66: 3,4,5
A67: LS TRUCKING | B67: 43 | C67: 82420 | D67: M | E67: 1 | F67: =fetchcomment(E67) -> 03-1J0104 | G67: 1 | H67: =fetchcomment(G67) -> CALIFORNIA HIGHWAY CONSTRUCTION GROUP, INC. | I67: 3
A68: M&S ENVIRONMENTAL LANDSCAPE | B68: 33 | C68: 439633.4 | D68: M | E68: 6 | F68: =fetchcomment(E68) -> 01-0G1404 01-0J4104 01-0H0214 01-0H1914 01-366004 01-0H20U4 | G68: 5 | H68: =fetchcomment(G68) -> MCCULLOUGH CONSTRUCTION INC STEELHEAD CONSTRUCTORS JV MERCER FRASER COMPANY GRANITE CONSTRUCTION COMPANY S.T. RHOADES CONSTRUCTION | I68: 1
A69: MANERI TRAFFIC CONTROL | B69: -4142 | C69: 1022705 | D69: F | E69: 4 | F69: =fetchcomment(E69) -> 07-358804 08-1H2004 11-422304 05-1M7404 | G69: 4 | H69: =fetchcomment(G69) -> AMES CONSTRUCTION INC HAZARD CONSTRUCTION ENGR TRUESDELL CORPORATION OF CALIFORNIA, INC. CAL STRIPE INC | I69: 5,7, 8, 11
A70: MARTINEZ LANDSCAPE CO | B70: 33 | C70: 1829461.25 | D70: M | E70: 4 | F70: =fetchcomment(E70) -> 07-333004 07-336804 07-353304 07-322004 | G70: 2 | H70: =fetchcomment(G70) -> POWELL CONSTRUCTORS INC MARTINEZ LANDSCAPE CO., INC | I70: 7
A71: MESA TRAFFIC SERVICES | B71: -4142 | C71: 7500 | D71: M | E71: 1 | F71: =fetchcomment(E71) -> 07-307024 | G71: 1 | H71: =fetchcomment(G71) -> CALPROMAX ENGINEERING INC. | I71: 7
A72: MEX ELECTRIC | B72: -4142 | C72: 5822652 | D72: M | E72: 5 | F72: =fetchcomment(E72) -> 06-0W1704 07-353304 11-422304 11-430644 06-0U8804 | G72: 5 | H72: =fetchcomment(G72) -> HAZARD CONSTRUCTION ENGR POWELL CONSTRUCTORS INC RNR CONSTRUCTION, INC. SEMA CONSTRUCTION SECURITY PAVING COMPANY, INC. | I72: 6, 7, 11
A73: MIRANDA LOGISTIC ENTERPRISE LLC | B73: -4142 | C73: 555711.46 | D73: M | E73: 2 | F73: =fetchcomment(E73) -> 07-333004 12-0Q2704 | G73: 2 | H73: =fetchcomment(G73) -> GRIFFITH COMPANY POWELL CONSTRUCTORS INC | I73: 7, 12
A74: MJD ENGINEERING | B74: -4142 | C74: 1431947 | D74: M | E74: 1 | F74: =fetchcomment(E74) -> 01-434804 | G74: 1 | H74: =fetchcomment(G74) -> MCM CONSTRUCTION, INC. | I74: 1
A75: PRE-CON PRODUCTS INC | B75: -4142 | C75: 182622.47 | D75: M | E75: 3 | F75: =fetchcomment(E75) -> 07-333004 07-336004 05-1C3604 | G75: 3 | H75: =fetchcomment(G75) -> POWELL CONSTRUCTORS INC BEADOR CONSTRUCTION M.C.M. CONSTRUCTION, INC. | I75: 5,7
A76: PTM GENERAL ENGINEERING SERVICES INC | B76: -4142 | C76: 11058278.78 | D76: F | E76: 7 | F76: =fetchcomment(E76) -> 04-3J1404 06-0W15V4 07-352004 07-354904 03-0J9234 04-2J9504 07-352104 | G76: 2 | H76: =fetchcomment(G76) -> PTM GENERAL ENGINEERING SERVICES INC. CENTRAL COAST FINANCIAL GROUP | I76: 3,4,6,7
A77: QA CONSTRUCTORS | B77: -4142 | C77: 279800 | D77: M | E77: 1 | F77: =fetchcomment(E77) -> 01-434804 | G77: 1 | H77: =fetchcomment(G77) -> MCM CONSTRUCTION, INC. | I77: 1
A78: QUIMU CONTRACTING, INC. | B78: -4142 | C78: 136952 | D78: M | E78: 1 | F78: =fetchcomment(E78) -> 10-1C4004 | G78: 1 | H78: =fetchcomment(G78) -> MIDSTATE BARRIER, INC. | I78: 10
A79: RE CHAFFEE CONSTRUCTION INC | B79: -4142 | C79: 1736332 | D79: M | E79: 1 | F79: =fetchcomment(E79) -> 07-319304 | G79: 1 | H79: =fetchcomment(G79) -> RE CHAFFEE CONSTRUCTION INC. | I79: 7
A80: RNR CONSTRUCTION, INC. | B80: -4142 | C80: 7087879 | D80: M | E80: 2 | F80: =fetchcomment(E80) -> 06-0W1704 06-0R2104 | G80: 2 | H80: =fetchcomment(G80) -> RNR CONSTRUCTION, INC. CAL VALLEY CONSTRUCTION, INC. | I80: 6
A81: ROBINSON SWEEPING INC | B81: 43 | C81: 64750 | D81: F | E81: 1 | F81: =fetchcomment(E81) -> 01-0E0104 | G81: 1 | H81: =fetchcomment(G81) -> MERCER FRASER COMPANY | I81: 1
A82: S CHAVEZ CONSTRUCTION | B82: 43 | C82: 231000 | D82: F | E82: 1 | F82: =fetchcomment(E82) -> 05-1G9804 | G82: 1 | H82: =fetchcomment(G82) -> CALPORTLAND CONSTRUCTION | I82: 5
A83: S&S TRUCKING | B83: 43 | C83: 423620 | D83: M | E83: 4 | F83: =fetchcomment(E83) -> 04-0Q30U4 04-4J9404 04-2K1704 04-4J4904 | G83: 3 | H83: =fetchcomment(G83) -> BAY CITIES PAVING & GRADING, INC. GHILOTTI BROS., INC GHILOTTI CONSTRUCTION COMPANY, INC. | I83: 4
A84: SWPPQUEEN | B84: -4142 | C84: 104020 | D84: F | E84: 5 | F84: =fetchcomment(E84) -> 03-1J0104 04-0K2404 12-0P9304 12-0R5004 03-0J8704 | G84: 5 | H84: =fetchcomment(G84) -> CALIFORNIA HIGHWAY CONSTRUCTION GROUP, INC. DESILVA GATES CONSTRUCTION LLC GRIFFITH COMPANY INTERNATIONAL LINE BUILDERS, INC. A TEICHERT & SON | I84: 3,4,12
A85: T.D.W. CONSTRUCTION, INC. | B85: -4142 | C85: 42015 | D85: M | E85: 1 | F85: =fetchcomment(E85) -> 04-0K2404 | G85: 1 | H85: =fetchcomment(G85) -> DESILVA GATES CONSTRUCTION LLC | I85: 4
A86: TERRA WEST | B86: -4142 | C86: 2900 | D86: M | E86: 1 | F86: =fetchcomment(E86) -> 11-422304 | G86: 1 | H86: =fetchcomment(G86) -> HAZARD CONSTRUCTION ENGR | I86: 11
A87: TULLY INC | B87: -4142 | C87: 123225 | D87: F | E87: 10 | F87: =fetchcomment(E87) -> 04-0K0704 04-0K2404 05-0C7324 01-0E0104 01-0H1914 04-0K4904 05-1K1204 04-0Q6804 04-1J7804 05-1M4504 | G87: 6 | H87: =fetchcomment(G87) -> BAY CITIES PAVING & GRADING, INC. GRANITE CONSTRUCTION COMPANY ST. FRANCIS ELECTRIC, LLC MERCER FRASER COMPANY O.C. JONES & SONS INC GORDON N BALL | I87: 1,4,5
A88: VALDIVIA TRUCKING | B88: 43 | C88: 88560 | D88: M | E88: 1 | F88: =fetchcomment(E88) -> 01-0H8104 | G88: 1 | H88: =fetchcomment(G88) -> GHILOTTI CONSTRUCTION COMPANY, INC. | I88: 1
A89: VELARDE CONSTRUCTION | B89: -4142 | C89: 74778.1 | D89: M | E89: 1 | F89: =fetchcomment(E89) -> 07-353304 | G89: 1 | H89: =fetchcomment(G89) -> POWELL CONSTRUCTORS INC | I89: 7
A90: VINTAGE PAVING COMPANY | B90: -4142 | C90: 191800 | D90: M | E90: 1 | F90: =fetchcomment(E90) -> 03-1J0104 | G90: 1 | H90: =fetchcomment(G90) -> CALIFORNIA HIGHWAY CONSTRUCTION GROUP, INC. | I90: 3
A91: WESTERN TRAFFIC SUPPLY INC | B91: -4142 | C91: 4368870 | D91: M | E91: 5 | F91: =fetchcomment(E91) -> 04-0K2404 04-0Q30U4 04-2K8104 04-4J9404 04-2Q2504 | G91: 4 | H91: =fetchcomment(G91) -> BAY CITIES PAVING & GRADING, INC. DESILVA GATES CONSTRUCTION LLC PACIFIC INFRASTRUCTURE CONSTRUCTION AMERICAN CIVIL CONSTRUCTION | I91: 4
A92: ZABEL ENTERPRISES | B92: 43 | C92: 1151876 | D92: M | E92: 3 | F92: =fetchcomment(E92) -> 06-0W1704 01-0E0104 01-366004 | G92: 3 | H92: =fetchcomment(G92) -> RNR CONSTRUCTION, INC. MERCER FRASER COMPANY GRANITE CONSTRUCTION COMPANY | I92: 1,6
F94: =fetchcomment(E94) ->  | H94: =fetchcomment(G94) -> 
F95: =fetchcomment(E95) ->  | H95: =fetchcomment(G95) -> 
A97: Native American | B97: Column1 | C97: Dollars | D97: M/F | E97: Contract | F97: Contract # | G97: Prime | H97: Prime Name | I97: Districts
A98: DISABLED AMERICAN VETERAN | B98: -4142 | C98: 1453626 | D98: M | E98: 1 | F98: =fetchcomment(E98) -> 06-0U8804 | G98: 1 | H98: =fetchcomment(G98) -> SECURITY PAVING COMPANY, INC. | I98: 6
A99: KRC SAFETY CO INC | B99: 33 | C99: 2223276.3 | D99: M | E99: 7 | F99: =fetchcomment(E99) -> 03-1J0104 06-0W1704 06-1C7404 05-1G9804 04-4K4004 06-0R2104 10-1C4004 | G99: 6 | H99: =fetchcomment(G99) -> CALIFORNIA HIGHWAY CONSTRUCTION GROUP, INC. MIDSTATE BARRIER, INC. RNR CONSTRUCTION, INC. CALPORTLAND CONSTRUCTION MIKE BROWN ELECTRIC CAL VALLEY CONSTRUCTION, INC. | I99: 3,4,5,6,10
A100: GR SUNBERG | B100: -4142 | C100: 1420400 | D100: M | E100: 1 | F100: =fetchcomment(E100) -> 01-366004 | G100: 1 | H100: =fetchcomment(G100) -> GRANITE CONSTRUCTION | I100: 1
A101: S.T. RHOADES CONSTRUCTION | B101: -4142 | C101: 8806546 | D101: M | E101: 2 | F101: =fetchcomment(E101) -> 01-0G1404 01-0H20U4 | G101: 2 | H101: =fetchcomment(G101) -> STEELHEAD CONSTRUCTORS JV S,T, RHOADES CONSTRUCTION | I101: 1
A102: SAM'S EQUIPMENT & SUPPLIES | B102: 33 | C102: 1185151.03 | D102: M | E102: 3 | F102: =fetchcomment(E102) -> 04-0Q30U4 06-0U8804 07-322004 | G102: 1 | H102: =fetchcomment(G102) -> BAY CITIES PAVING & GRADING, INC. POWELL CONSTRUCTORS INC SECURITY PAVING COMPANY, INC. | I102: 4,6,7
A103: TOTAL TRAFFIC CONTROL | B103: 33 | C103: 467911.5 | D103: M | E103: 4 | F103: =fetchcomment(E103) -> 04-3K4204 05-1K0704 04-0Q6804 05-1M4504 | G103: 2 | H103: =fetchcomment(G103) -> GORDON N. BALL, INC. GRANITE ROCK COMPANY | I103: 4, 5
A104: WEST COAST DRILLING | B104: -4142 | C104: 1881339 | D104: F | E104: 3 | F104: =fetchcomment(E104) -> 01-0H8104 06-0W1704 05-1K1204 | G104: 3 | H104: =fetchcomment(G104) -> GHILOTTI CONSTRUCTION COMPANY, INC. RNR CONSTRUCTION, INC. GORDON N BALL INC | I104: 1,5,6
F105: =fetchcomment(E105) ->  | H105: =fetchcomment(G105) -> 
A107: African American | B107: Column1 | C107: Dollars | D107: M/F | E107: Contract | F107: Contract # | G107: Prime | H107: Prime Name | I107: Districts
A108: ALLUVION BIOLOGICAL CONSULTING | B108: -4142 | C108: 662780 | D108: M | E108: 3 | F108: =fetchcomment(E108) -> 04-0Q30U4 01-0E7904 04-0Q6804 | G108: 3 | H108: =fetchcomment(G108) -> BAY CITIES PAVING & GRADING, INC. GORDON N. BALL, INC. MERCER FRASER | I108: 1,4
A109: AMERICAN TRAFFIC BARRICADE | B109: -4142 | C109: 195850 | D109: M | E109: 1 | F109: =fetchcomment(E109) -> 08-1L6404 | G109: 1 | H109: =fetchcomment(G109) -> BC RENTAL LLC | I109: 8
A110: APPIAN UDBE SWPPPS | B110: -4142 | C110: 6050 | D110: F | E110: 4 | F110: =fetchcomment(E110) -> 07-307024 01-0H0214 05-1H8104 12-0R1804 | G110: 3 | H110: =fetchcomment(G110) -> A. TEICHERT & SON INC DBA TEICHERT CONSTRUCTION CALPROMAX ENGINEERING INC. MERCER FRASER | I110: 1,5,7,12
A111: BLACK DIAMOND ASPHALT | B111: 33 | C111: 700293.18 | D111: F | E111: 2 | F111: =fetchcomment(E111) -> 01-0E0104 03-0J8704 | G111: 2 | H111: =fetchcomment(G111) -> MERCER FRASER COMPANY A TEICHERT & SON INC | I111: 1,3
A112: DOUBLE G'S SUPPLY, INC. | B112: 33 | C112: 180826.7 | D112: F | E112: 2 | F112: =fetchcomment(E112) -> 04-0K2404 04-0Q30U4 | G112: 2 | H112: =fetchcomment(G112) -> BAY CITIES PAVING & GRADING, INC. DESILVA GATES CONSTRUCTION LLC | I112: 4
A113: GARRISON WALKER GROUP, INC. | B113: -4142 | C113: 258339.77 | D113: M | E113: 1 | F113: =fetchcomment(E113) -> 04-0Q30U4 | G113: 1 | H113: =fetchcomment(G113) -> BAY CITIES PAVING & GRADING, INC. | I113: 4
A114: K & G CONCRETE PUMPING | B114: -4142 | C114: 18590 | D114: M | E114: 1 | F114: =fetchcomment(E114) -> 05-1K1204 | G114: 1 | H114: =fetchcomment(G114) -> GORDON N BALL | I114: 5
A115: SYNERGY TRAFFIC CONTROL | B115: -4142 | C115: 2795000.47 | D115: M | E115: 15 | F115: =fetchcomment(E115) -> 07-353304 07-359504 12-0P9304 12-0Q2704 12-0R1904 12-0R5004 05-1H6904 07-336004 04-2G4614 05-1C3604 05-1H8104 06-0U8804 07-322004 07-322704 | G115: 13 | H115: =fetchcomment(G115) -> CROSSTOWN ELECTRICAL AND DATA, INC. FERREIRA CONSTRUCTION CO., INC. GRIFFITH COMPANY INTERNATIONAL LINE BUILDERS, INC. POWELL CONSTRUCTORS INC DESILVA GATES CONSTRUCTION BEADOR CONSTRUCTION ACCURATE EARTHWORKS, INC. M.C.M. CONSTRUCTION, INC. A. TEICHERT & SON INC DBA TEICHERT CONSTRUCTION SECURITY PAVING COMPANY, INC. POWELL CONSTRUCTORS INC AUTOBAHN CONSTRUCTION INC. | I115: 4,5,6,7,12
A116: THOMPSON CONSTRACTING | B116: -4142 | C116: 98950 | D116: M | E116: 1 | F116: =fetchcomment(E116) -> 03-0J8704 | G116: 1 | H116: =fetchcomment(G116) -> A TEICHERT & SON INC | I116: 3
F117: =fetchcomment(E117) ->  | H117: =fetchcomment(G117) -> 
F118: =fetchcomment(E118) ->  | H118: =fetchcomment(G118) -> 
F119: =fetchcomment(E119) ->  | H119: =fetchcomment(G119) -> 
A121: Sub Cont Asian | B121: Column1 | C121: Dollars | D121: M/F | E121: Contract | F121: Contract # | G121: Prime | H121: Prime Name | I121: Districts
A122: A1 TRUCKING SVS, INC. | B122: 43 | C122: 3817823 | D122: M | E122: 4 | F122: =fetchcomment(E122) -> 04-0Q30U4 04-4J9404 04-2G7404 04-2K1704 | G122: 3 | H122: =fetchcomment(G122) -> BAY CITIES PAVING & GRADING, INC. GHILOTTI BROTHERS GHILOTTI CONSTRUCTION COMPANY, INC. | I122: 4
A123: ACCURATE EARTHWORKS, INC. | B123: -4142 | C123: 169501 | D123: M | E123: 1 | F123: =fetchcomment(E123) -> 04-2G4614 | G123: 1 | H123: =fetchcomment(G123) -> ACCURATE EARTHWORKS, INC. | I123: 4
A124: ALL CITIES TRUCKING | B124: 43 | C124: 6276286 | D124: M | E124: 4 | F124: =fetchcomment(E124) -> 04-0Q30U4 04-4J9404 04-2Q2504 04-1J7804 | G124: 3 | H124: =fetchcomment(G124) -> BAY CITIES PAVING & GRADING, INC. AMERICAN CIVIL CONSTRUCTION O.C. JONES & SONS, INC. | I124: 4
A125: BRIDGE RUBBER BEARING | B125: -4142 | C125: 71501.46 | D125: M | E125: 3 | F125: =fetchcomment(E125) -> 04-0Q30U4 05-0C7324 05-1C3604 | G125: 3 | H125: =fetchcomment(G125) -> BAY CITIES PAVING & GRADING, INC. GRANITE CONSTRUCTION COMPANY M.C.M. CONSTRUCTION, INC. | I125: 4, 5
A126: HEIR AND SON CONSTRUCTION | B126: -4142 | C126: 51567.6 | D126: M | E126: 1 | F126: =fetchcomment(E126) -> 04-2Q2504 | G126: 1 | H126: =fetchcomment(G126) ->  | I126: 4
A127: SEQUOIA CONSULTANT INC | B127: 33 | C127: 123340 | D127: M | E127: 4 | F127: =fetchcomment(E127) -> 07-353304 11-422304 07-336004 07-322004 | G127: 3 | H127: =fetchcomment(G127) -> HAZARD CONSTRUCTION ENGR POWELL CONSTRUCTORS INC BEADOR CONSTRUCTION COMPANY | I127: 7, 11
A128: SHK HAULING | B128: 43 | C128: 67920 | D128: M | E128: 2 | F128: =fetchcomment(E128) -> 03-0J8704 03-0J9234 | G128: 2 | H128: =fetchcomment(G128) -> A TEICHERT & SON CENTRAL COAST FINANCIAL GROUP | I128: 3
A129: SIERRA GEOTECH DBE INC | B129: -4142 | C129: 379021 | D129: M | E129: 2 | F129: =fetchcomment(E129) -> 05-0C7324 05-1C3604 | G129: 1 | H129: =fetchcomment(G129) -> GRANITE CONSTRUCTION COMPANY M.C.M. CONSTRUCTION, INC. | I129: 5
A130: USA TRUCKING | B130: 43 | C130: 35000 | D130: M | E130: 1 | F130: =fetchcomment(E130) -> 03-0J8704 | G130: 1 | H130: =fetchcomment(G130) -> A TEICHERT & SON INC | I130: 3
F131: =fetchcomment(E131) ->  | H131: =fetchcomment(G131) -> 
F132: =fetchcomment(E132) ->  | H132: =fetchcomment(G132) -> 
A134: Asian Pacific | B134: Column1 | C134: Dollars | D134: M/F | E134: Contract | F134: Contract # | G134: Prime | H134: Prime Name | I134: Districts
A135: A AND M SALES | B135: -4142 | C135: 119305.53 | D135: F | E135: 1 | F135: =fetchcomment(E135) -> 05-0C7324 | G135: 1 | H135: =fetchcomment(G135) -> GRANITE CONSTRUCTION COMPANY | I135: 5
A136: ACE FENCE COMPANY | B136: -4142 | C136: 3410173.26 | D136: F | E136: 11 | F136: =fetchcomment(E136) -> 05-1C3604 06-0U8804 06-0W1704 07-306614 07-322704 08-1H2004 11-422304 12-0Q2704 12-0R2904 05-1G9804 07-336004 | G136: 11 | H136: =fetchcomment(G136) -> A.M. CONCRETE, INC. AMES CONSTRUCTION INC AUTOBAHN CONSTRUCTION INC. GRIFFITH COMPANY HAZARD CONSTRUCTION ENGR PETERSON-CHASE GENERAL ENGINEERING CONST RNR CONSTRUCTION, INC. M.C.M. CONSTRUCTION, INC. MERCER FRASER COMPANY A TEICHERT AND SON SECURITY PAVING COMPANY, INC. | I136: 5,6,7,8,11,12
A137: GLOBAL ROAD SEALING, INC. | B137: -4142 | C137: 142560 | D137: M | E137: 4 | F137: =fetchcomment(E137) -> 07-307024 07-359704 12-0R2904 12-0R1804 | G137: 2 | H137: =fetchcomment(G137) -> CALPROMAX ENGINEERING INC. PETERSON-CHASE GENERAL ENGINEERING CONST | I137: 7, 12
A138: GOLDEN STATE TRUCKING | B138: 43 | C138: 2209770 | D138: M | E138: 1 | F138: =fetchcomment(E138) -> 04-0Q30U4 | G138: 1 | H138: =fetchcomment(G138) -> BAY CITIES PAVING & GRADING, INC. | I138: 4
A139: JJ NGUYEN | B139: 33 | C139: 785476.5 | D139: M | E139: 5 | F139: =fetchcomment(E139) -> 04-0K4904 04-1J7804 04-2K1704 04-4J4904 05-1H8104 | G139: 4 | H139: =fetchcomment(G139) -> A. TEICHERT & SON INC DBA TEICHERT CONSTRUCTION GHILOTTI BROS., INC. GHILOTTI CONSTRUCTION COMPANY, INC. O.C. JONES AND SONS | I139: 4,5
A140: KUDU EQUIPMENT CORPORATION | B140: 33 | C140: 7914.43 | D140: F | E140: 1 | F140: =fetchcomment(E140) -> 12-0R1904 | G140: 1 | H140: =fetchcomment(G140) -> HAZARD CONSTRUCTION ENGR | I140: 12
A141: LMS TRANSPORT | B141: -4142 | C141: 1893358 | D141: M | E141: 3 | F141: =fetchcomment(E141) -> 05-1G9804 09-379304 11-422304 | G141: 3 | H141: =fetchcomment(G141) -> GORDON N. BALL, INC. HAT CREEK CONSTRUCTION & MATERIALS, INC. CALPORTALND CONSTRUCTION | I141: 5,9,11
A142: NITTA EROSION CONTROL | B142: 33 | C142: 1166677.6 | D142: F | E142: 3 | F142: =fetchcomment(E142) -> 01-0E7904 03-0J8704 05-1K0704 | G142: 3 | H142: =fetchcomment(G142) -> GRIFFITH COMPANY CALPORTLAND CONSTRUCTION BEADOR CONSTRUCTION | I142: 1,3,5
A143: PRIME SUPPLY 1 | B143: -4142 | C143: 40200.26 | D143: F | E143: 2 | F143: =fetchcomment(E143) -> 05-1C3604 12-0P9304 | G143: 2 | H143: =fetchcomment(G143) -> MIDSTATE BARRIER, INC. | I143: 5,12
A144: S. KWOK ENGINEERS | B144: -4142 | C144: 103900 | D144: M | E144: 1 | F144: =fetchcomment(E144) -> 04-0Q30U4 | G144: 1 | H144: =fetchcomment(G144) -> BAY CITIES PAVING & GRADING, INC. | I144: 4
A145: TRAFFIC LOOPS CRACKFILLING | B145: -4142 | C145: 840000 | D145: F | E145: 2 | F145: =fetchcomment(E145) -> 06-1C7404 05-1G9804 | G145: 2 | H145: =fetchcomment(G145) -> MIDSTATE BARRIER, INC. CALPORTLAND CONSTRUCTION | I145: 5,6
A146: VT ELECTRIC | B146: -4142 | C146: 594795 | D146: M | E146: 1 | F146: =fetchcomment(E146) -> 07-204904 | G146: 1 | H146: =fetchcomment(G146) -> POWELL CONSTRUCTORS INC | I146: 7
F147: =fetchcomment(E147) ->  | H147: =fetchcomment(G147) -> 
F148: =fetchcomment(E148) ->  | H148: =fetchcomment(G148) -> 
A150: Other | C150: Dollars | D150: M/F | E150: Contract | F150: Contract # | G150: Prime | H150: Prime Name | I150: Districts
F151: =fetchcomment(E151) ->  | H151: =fetchcomment(G151) -> 
F152: =fetchcomment(E152) ->  | H152: =fetchcomment(G152) -> 
A154: Non Minority Women | B154: Column1 | C154: Dollars | D154: M/F | E154: Contract | F154: Contract # | G154: Prime | H154: Prime Name | I154: Districts
A155: ACTION SWEEPING SERVICES | B155: 43 | C155: 276000 | D155: F | E155: 2 | F155: =fetchcomment(E155) -> 03-0J8704 04-0K4904 | G155: 2 | H155: =fetchcomment(G155) -> A TEICHERT & SON INC O.C. JONES & SONS INC | I155: 3,4
A156: ALTA GROUP | B156: -4142 | C156: 42250 | D156: F | E156: 1 | F156: =fetchcomment(E156) -> 01-0H8104 | G156: 1 | H156: =fetchcomment(G156) -> GHILOTTI CONSTRUCTION COMPANY, INC. | I156: 1
A157: AMERICAN PAVING SUPPLY | B157: -4142 | C157: 1125584.1 | D157: F | E157: 1 | F157: =fetchcomment(E157) -> 04-0Q30U4 | G157: 1 | H157: =fetchcomment(G157) -> BAY CITIES PAVING & GRADING, INC. | I157: 4
A158: AMERICAN TRAFFIC SAFETY | B158: -4142 | C158: 446880 | D158: F | E158: 1 | F158: =fetchcomment(E158) -> 04-2K1704 | G158: 1 | H158: =fetchcomment(G158) -> GHILOTTI CONSTRUCTION COMPANY, INC. | I158: 4
A159: AURORA INDUSTIAL HYGIENE | B159: -4142 | C159: 2000 | D159: F | E159: 2 | F159: =fetchcomment(E159) -> 05-1H9604 12-0P9304 | G159: 2 | H159: =fetchcomment(G159) -> GRANITE CONSTRUCTION COMPANY GRIFFITH COMPANY | I159: 5, 12
A160: AVILA TRAFFIC SAFETY | B160: 33 | C160: 440904.9 | D160: F | E160: 2 | F160: =fetchcomment(E160) -> 05-1J4604 05-1K1204 | G160: 2 | H160: =fetchcomment(G160) -> GRANITE ROCK COMPANY GORDON N BALL INC | I160: 5
A161: BT TRUCKING | B161: 43 | C161: 417621 | D161: F | E161: 3 | F161: =fetchcomment(E161) -> 08-1H2004 05-1C3604 07-322004 | G161: 1 | H161: =fetchcomment(G161) -> AMES CONSTRUCTION INC M.C.M. CONSTRUCTION, INC. POWELL CONSTRUCTORS INC | I161: 5, 7, 8
A162: C&N REINFORCING, INC. | B162: -4142 | C162: 2398202.62 | D162: F | E162: 1 | F162: =fetchcomment(E162) -> 04-0Q30U4 | G162: 1 | H162: =fetchcomment(G162) -> BAY CITIES PAVING & GRADING, INC. | I162: 4
A163: CAL SIGNAL CORP | B163: 33 | C163: 2250507.2 | D163: F | E163: 4 | F163: =fetchcomment(E163) -> 05-1H9604 05-1H6904 04-4K4004 05-1H8104 | G163: 4 | H163: =fetchcomment(G163) -> GRANITE CONSTRUCTION COMPANY DESILVA GATES CONSTRUCTION MIKE BROWN ELECTRIC A. TEICHERT & SON INC DBA TEICHERT CONSTRUCTION | I163: 4,5
A164: CAT TRACKING | B164: -4142 | C164: 1145545 | D164: F | E164: 5 | F164: =fetchcomment(E164) -> 07-326204 07-359504 08-1K7904 12-0Q2704 12-0R5004 | G164: 4 | H164: =fetchcomment(G164) -> CROSSTOWN ELECTRICAL AND DATA, INC. FEC FUTURE CONTRACTORS AND ENGINEERS, INC GRIFFITH COMPANY INTERNATIONAL LINE BUILDERS, INC. | I164: 7, 8, 12
A165: CMC TRAFFIC CONTROL | B165: -4142 | C165: 249980 | D165: F | E165: 1 | F165: =fetchcomment(E165) -> 04-0K4904 | G165: 1 | H165: =fetchcomment(G165) -> O.C. JONES & SONS INC | I165: 4
A166: COLUMBIA ELECTRIC INC | B166: -4142 | C166: 3764950 | D166: F | E166: 6 | F166: =fetchcomment(E166) -> 04-3K4204 04-3K4404 04-0K4904 04-2G7404 04-2Q2504 04-4J4904 | G166: 4 | H166: =fetchcomment(G166) -> GRANITE ROCK COMPANY O.C. JONES & SONS, INC. GHILOTTI BROS AMERICAN CIVIL CONSTRUCTION | I166: 4, 7
A167: CONSTRUCTION SURVEY INC | B167: -4142 | C167: 11000 | D167: F | E167: 1 | F167: =fetchcomment(E167) -> 04-2G7404 | G167: 1 | H167: =fetchcomment(G167) -> GHILOTTI BROS INC | I167: 4
A168: COOPER ENGINEERING | B168: -4142 | C168: 1394784.25 | D168: F | E168: 2 | F168: =fetchcomment(E168) -> 05-0C7324 11-422304 | G168: 2 | H168: =fetchcomment(G168) -> GRANITE CONSTRUCTION COMPANY HAZARD CONSTRUCTION ENGR | I168: 5, 11
A169: DEES BURKE ENGINEERING | B169: -4142 | C169: 4688876.58 | D169: F | E169: 16 | F169: =fetchcomment(E169) -> 01-0G1404 01-434804 04-0Q30U4 05-0C7324 06-0W1704 11-430644 12-0Q2704 01-0E7904 01-0H0214 01-0H1914 01-366004 05-1G9804 04-2K1704 04-4J4904 05-1C3604 06-0R2104 | G169: 11 | H169: =fetchcomment(G169) -> BAY CITIES PAVING & GRADING, INC. GRANITE CONSTRUCTION COMPANY GRIFFITH COMPANY MCM CONSTRUCTION, INC. RNR CONSTRUCTION, INC. SEMA CONSTRUCTION STEELHEAD CONSTRUCTORS JV MERCER FRASER COMPANY CALPORTLAND CONSTRUCTION GHILOTTI CONSTRUCTION COMPANY, INC. GHILOTTI BROS., INC. CAL VALLEY CONSTRUCTION, INC. | I169: 1, 4, 5, 6, 11, 12
A170: DILLARD ENVIRONMENTAL SERVICES | B170: 43 | C170: 85660 | D170: F | E170: 2 | F170: =fetchcomment(E170) -> 01-434804 01-366004 | G170: 2 | H170: =fetchcomment(G170) -> MCM CONSTRUCTION, INC. GRANITE CONSTRUCTION | I170: 1
A171: DIVERSIFIED LANDSCAPE CO | B171: -4142 | C171: 528307.6 | D171: F | E171: 3 | F171: =fetchcomment(E171) -> 08-1H2004 11-422304 11-430644 | G171: 3 | H171: =fetchcomment(G171) -> AMES CONSTRUCTION INC HAZARD CONSTRUCTION ENGR SEMA CONSTRUCTION | I171: 8, 11
A172: FOREFRONT DEEP FOUNDATIONS | B172: -4142 | C172: 1046322 | D172: F | E172: 1 | F172: =fetchcomment(E172) -> 06-0U8804 | G172: 1 | H172: =fetchcomment(G172) -> SECURITY PAVING COMPANY, INC. | I172: 6
A173: GDS INDUSTRIES, INC. | B173: -4142 | C173: 2448487.79 | D173: F | E173: 1 | F173: =fetchcomment(E173) -> 04-0Q30U4 | G173: 1 | H173: =fetchcomment(G173) -> BAY CITIES PAVING & GRADING, INC. | I173: 4
A174: HILLSIDE DRILLING | B174: -4142 | C174: 3796155 | D174: F | E174: 2 | F174: =fetchcomment(E174) -> 05-0C7324 05-1C3604 | G174: 2 | H174: =fetchcomment(G174) -> GRANITE CONSTRUCTION COMPANY M.C.M. CONSTRUCTION, INC. | I174: 5
A175: J & M LAND RESTORATION | B175: -4142 | C175: 1375293.41 | D175: F | E175: 3 | F175: =fetchcomment(E175) -> 05-1G9804 05-1C3604 06-0U8804 | G175: 3 | H175: =fetchcomment(G175) -> CALPORTLAND CONSTRUCTION M.C.M. CONSTRUCTION, INC. SECURITY PAVING COMPANY, INC. | I175: 5, 6
A176: J FRANCIS COMPANY | B176: -4142 | C176: 2202040 | D176: F | E176: 1 | F176: =fetchcomment(E176) -> 11-430444 | G176: 1 | H176: =fetchcomment(G176) -> J. FRANCIS COMPANY | I176: 11
A177: JARRETT FOUNDATIONS INC | B177: 33 | C177: 7083670 | D177: F | E177: 5 | F177: =fetchcomment(E177) -> 01-0J4104 01-0E7904 01-0H0214 01-0H1914 01-366004 | G177: 3 | H177: =fetchcomment(G177) -> MCCULLOUGH CONSTRUCTION INC MERCER FRASER COMPANY GRANITE CONSTRUCTION | I177: 1
A178: JL STORMWATER CONSULTANTS | B178: -4142 | C178: 6000 | D178: F | E178: 1 | F178: =fetchcomment(E178) -> 12-0R1904 | G178: 1 | H178: =fetchcomment(G178) -> FERREIRA CONSTRUCTION CO., INC. | I178: 12
A179: K & K CONSTRUCTION SUPPLY INC | B179: 33 | C179: 27222.89 | D179: F | E179: 2 | F179: =fetchcomment(E179) -> 04-0Q30U4 05-0C7324 | G179: 2 | H179: =fetchcomment(G179) -> BAY CITIES PAVING & GRADING, INC. GRANITE CONSTRUCTION COMPANY | I179: 4, 5
A180: LA STEEL SERVICES INC | B180: -4142 | C180: 127750 | D180: F | E180: 1 | F180: =fetchcomment(E180) -> 11-430644 | G180: 1 | H180: =fetchcomment(G180) -> SEMA CONSTRUCTION | I180: 11
A181: LOGISTICAL ENTERPRISES | B181: -4142 | C181: 595398.29 | D181: F | E181: 1 | F181: =fetchcomment(E181) -> 04-0Q30U4 | G181: 1 | H181: =fetchcomment(G181) -> BAY CITIES PAVING & GRADING, INC. | I181: 4
A182: MCCULLOUGH CONSTRUCTION INC | B182: -4142 | C182: 10312056.14 | D182: F | E182: 1 | F182: =fetchcomment(E182) -> 01-0J4104 | G182: 1 | H182: =fetchcomment(G182) -> MCCULLOUGH CONSTRUCTION INC | I182: 11
A183: MCW TRAFFIC CONTROL | B183: -4142 | C183: 284525 | D183: F | E183: 2 | F183: =fetchcomment(E183) -> 04-0Q30U4 10-1C4004 | G183: 2 | H183: =fetchcomment(G183) -> BAY CITIES PAVING & GRADING, INC. MIDSTATE BARRIER, INC. | I183: 4, 10
A184: MOUNTAINVIEW BIOLOGICAL | B184: -4142 | C184: 16766.25 | D184: F | E184: 1 | F184: =fetchcomment(E184) -> 08-1L6404 | G184: 1 | H184: =fetchcomment(G184) -> BC RENTAL LLC DBA BC TRAFFIC | I184: 8
A185: NATURAL RESOURCES MANAGEMENT | B185: -4142 | C185: 16706.7 | D185: F | E185: 2 | F185: =fetchcomment(E185) -> 01-0G1404 01-0J4104 | G185: 2 | H185: =fetchcomment(G185) -> MCCULLOUGH CONSTRUCTION INC STEELHEAD CONSTRUCTORS JV | I185: 1
A186: PAVEMENT MANAGEMENT | B186: -4142 | C186: 83800 | D186: F | E186: 3 | F186: =fetchcomment(E186) -> 04-0K2404 04-0Q30U4 05-1H6904 | G186: 2 | H186: =fetchcomment(G186) -> BAY CITIES PAVING & GRADING, INC. DESILVA GATES CONSTRUCTION LLC | I186: 4,5
A187: PAYCO SPECIALTIES | B187: -4142 | C187: 410312 | D187: F | E187: 3 | F187: =fetchcomment(E187) -> 07-353304 11-422304 12-0R2904 | G187: 3 | H187: =fetchcomment(G187) -> HAZARD CONSTRUCTION ENGR PETERSON-CHASE GENERAL ENGINEERING CONST POWELL CONSTRUCTORS INC | I187: 7, 11, 12
A188: PC&N CONSTRUCTION, INC. | B188: -4142 | C188: 529289.99 | D188: F | E188: 4 | F188: =fetchcomment(E188) -> 04-2K1704 04-4J4904 05-1M4504 10-1C4004 | G188: 4 | H188: =fetchcomment(G188) -> GHILOTTI CONSTRUCTION COMPANY, INC. GHILOTTI BROS., INC. GORDON N. BALL, INC. MIDSTATE BARRIER, INC. | I188: 4, 5, 10
A189: PLAYA SAFETY INC | B189: -4142 | C189: 68792.77 | D189: F | E189: 3 | F189: =fetchcomment(E189) -> 07-333004 12-0R1904 08-1L6404 | G189: 3 | H189: =fetchcomment(G189) -> POWELL CONSTRUCTORS INC FERREIRA CONSTRUCTION CO., INC. BC RENTAL LLC | I189: 7,8,12
A190: ROLL N ROCK CONSTRUCTION | B190: -4142 | C190: 1585984.5 | D190: F | E190: 8 | F190: =fetchcomment(E190) -> 01-0G1404 01-434804 01-0E0104 01-0H0214 01-0H1914 03-0J8704 03-0J9234 04-2K1704 | G190: 6 | H190: =fetchcomment(G190) -> MCM CONSTRUCTION, INC. STEELHEAD CONSTRUCTORS JV MERCER FRASER COMPANY A TEICHERT AND SONS CENTRALCOAST FINANCIAL GROUP GHILOTTI CONSTRUCTION COMPANY, INC. | I190: 1,3,4
A191: ROUCH REBAR | B191: -4142 | C191: 637333.48 | D191: F | E191: 1 | F191: =fetchcomment(E191) -> 07-336004 | G191: 1 | H191: =fetchcomment(G191) -> BEADOR CONSTRUCTION | I191: 7
A192: RUPERT CONSTRUCTION SUPPLY | B192: 33 | C192: 1127643.02 | D192: F | E192: 9 | F192: =fetchcomment(E192) -> 01-0H8104 01-434804 01-0H0214 01-0H1914 05-1K1204 04-2K1704 05-1C3604 05-1M4504 06-0U8804 | G192: 5 | H192: =fetchcomment(G192) -> GHILOTTI CONSTRUCTION COMPANY, INC. MERCER FRASER COMPANY GORDON N BALL INC M.C.M. CONSTRUCTION, INC. SECURITY PAVING COMPANY, INC. | I192: 1,4,5,6
A193: SUPER SEAL & STRIPE | B193: -4142 | C193: 1249633 | D193: F | E193: 4 | F193: =fetchcomment(E193) -> 04-3K4404 05-0C7324 05-1J4604 07-358804 | G193: 4 | H193: =fetchcomment(G193) -> GRANITE CONSTRUCTION COMPANY GRANITE ROCK COMPANY O.C. JONES & SONS, INC. TRUESDELL CORPORATION OF CALIFORNIA, INC. | I193: 4, 5, 7
A194: SURFACE PREP AND MAINTENANCE | B194: -4142 | C194: 96990 | D194: F | E194: 1 | F194: =fetchcomment(E194) -> 03-0J9234 | G194: 1 | H194: =fetchcomment(G194) -> CENTRAL COAST FINANCIAL GROUP | I194: 3
A195: T&S DVBE INC | B195: 33 | C195: 3302148.88 | D195: F | E195: 7 | F195: =fetchcomment(E195) -> 01-0G1404 03-1J0104 04-0K0704 05-0C7324 01-366004 04-1J7804 09-379304 | G195: 6 | H195: =fetchcomment(G195) -> CALIFORNIA HIGHWAY CONSTRUCTION GROUP, INC. GRANITE CONSTRUCTION COMPANY ST. FRANCIS ELECTRIC, LLC STEELHEAD CONSTRUCTORS JV O.C. JONES & SONS, INC. HAT CREEK CONSTRUCTION & MATERIALS, INC. | I195: 1, 3, 4, 5, 9
A196: TRI VALLEY WATER TRUCKS INC | B196: 43 | C196: 3911916.3 | D196: F | E196: 4 | F196: =fetchcomment(E196) -> 04-0K2404 05-0C7324 05-1H6904 05-1H8104 | G196: 3 | H196: =fetchcomment(G196) -> DESILVA GATES CONSTRUCTION LLC GRANITE CONSTRUCTION COMPANY A. TEICHERT & SON INC DBA TEICHERT CONSTRUCTION | I196: 4, 5
A197: TRIUMPH GEO-SYNTHETICS INC | B197: 33 | C197: 131111.98 | D197: F | E197: 7 | F197: =fetchcomment(E197) -> 04-0Q30U4 07-353304 08-1H2004 12-0Q2704 07-336004 05-1H8104 07-322004 | G197: 6 | H197: =fetchcomment(G197) -> AMES CONSTRUCTION INC BAY CITIES PAVING & GRADING, INC. GRIFFITH COMPANY POWELL CONSTRUCTORS INC BEADOR CONSTRUCTION A. TEICHERT & SON INC DBA TEICHERT CONSTRUCTION | I197: 4,5,7,8,12
A198: TYRRELL RESOURCES | B198: -4142 | C198: 1773412 | D198: F | E198: 9 | F198: =fetchcomment(E198) -> 01-0H8104 01-434804 04-0Q30U4 05-0C7324 01-366004 03-0J8704 05-1K1204 05-1C3604 06-0U8804 | G198: 7 | I198: 1,3,4,5
A199: VERIDICO GROUP INC | B199: -4142 | C199: 10035 | D199: F | E199: 1 | F199: =fetchcomment(E199) -> 04-2Q2504 | G199: 1 | I199: 4
A200: WEST COAST WATER & TRUCKING | B200: 43 | C200: 564412 | D200: F | E200: 1 | F200: =fetchcomment(E200) -> 03-0J8704 | G200: 1 | I200: 3
F201: =fetchcomment(E201) -> 
B202: =COUNTIF(B30:B201, "33") -> 22
B203: =COUNTIF(B30:B201, "43") -> 19
B204: =COUNTIF(B30:B201, "-4142") -> 105 | G204: =fetchcomment(F204) -> 
A205: Prime Name | C205: # of Contracts | D205: Contract # | E205: Prime Name | F205: # of Contracts | G205: Contract #
A206: A. TEICHERT & SON INC | C206: 2 | D206: =fetchcomment(C206) -> 03-0J8704 05-1H8104 | E206: HAT CREEK CONSTRUCTION & MATERIALS, INC. | F206: 1 | G206: =fetchcomment(F206) -> 09-379304
A207: A.M. CONCRETE, INC. | C207: 1 | D207: =fetchcomment(C207) -> 07-306614 | E207: HAZARD CONSTRUCTION ENGR | F207: 1 | G207: =fetchcomment(F207) -> 11-422304
A208: ACCURATE EARTHWORKS, INC. | C208: 1 | D208: =fetchcomment(C208) -> 04-2G4614 | E208: INTERNATIONAL LINE BUILDERS, INC. | F208: 2 | G208: =fetchcomment(F208) -> 08-1K7904 12-0R5004
A209: ALFARO COMMUNICATIONS CONSTRUCTION,INC | C209: 1 | D209: =fetchcomment(C209) -> 12-0R1504 | E209: J FRANCIS COMPANY | F209: 1 | G209: =fetchcomment(F209) -> 11-430444
A210: AMERICAN CIVIL CONSTRUCTION | C210: 1 | D210: =fetchcomment(C210) -> 04-2Q2504 | E210: MARTINEZ LANDSCAPE CO., INC | F210: 1 | G210: =fetchcomment(F210) -> 07-336804
... 23 more rows
